bitfinex-derivatives/quotes_SOLF0:USTF0_20241021
["timestamp","ask_amount","ask_price","bid_price","bid_amount"]
[1729525347642,8.2862,164.18,164.14,3.0468]
[1729525347846,3.0462,164.18,164.14,3.0468]
[1729525348043,5.24,164.18,164.09,5.24]
[1729525348247,8.27779122,164.2,164.09,8.24010712]
[1729525348449,8.27779122,164.2,164.1,1.2238]
[1729525348648,3.03779122,164.2,164.1,1.2238]
[1729525348849,5.24,164.21,164.11,2.6403]
[1729525349243,8.2856,164.21,164.11,2.6403]
[1729525349549,3.8292,164.25,164.11,2.6403]
[1729525349841,3.0453,164.23,164.2,3.0458]
[1729525352446,3.0455,164.22,164.18,3.046]
[1729525354168,5.24,164.24,164.12,5.22]
[1729525354353,3.0458,164.2,164.12,5.22]
[1729525354667,8.2658,164.2,164.12,5.22]
[1729525355564,3.0461,164.18,164.12,5.22]
[1729525355766,5.22,164.2,164.12,5.22]
[1729525356064,5.22,164.2,164.16,3.0464]
[1729525356467,3.046,164.19,164.16,3.0464]
[1729525357163,3.046,164.19,164.17,3.0463]
[1729525358267,8.2659,164.2,164.17,3.0463]
[1729525360864,5.22,164.2,164.18,3.046]
[1729525364371,5.22,164.2,164.12,5.22]
[1729525364571,6.91931232,164.25,164.12,5.22]
[1729525364572,3.0453,164.23,164.12,5.22]
[1729525364872,5.22,164.23,164.12,5.22]
[1729525365063,8.2653,164.23,164.2,3.0456]
[1729525365271,3.0453,164.23,164.12,5.22]
[1729525365471,3.04095916,164.23,164.13,6.094]
[1729525365677,3.0451,164.24,164.21,3.0455]
[1729525365868,2.98060331,164.23,164.21,3.0455]
[1729525366575,2.98060331,164.23,164.18,3.0461]
[1729525366768,3.0451,164.24,164.16,5.22]
[1729525366969,2.99645434,164.23,164.16,5.22]
[1729525367170,2.99645434,164.23,164.21,3.0455]
[1729525367371,2.99645434,164.23,164.16,5.22]
[1729525367972,2.99645434,164.23,164.21,3.0455]
[1729525369470,2.99645434,164.23,164.16,5.22]
[1729525369671,2.99645434,164.23,164.22,3.0454]
[1729525369875,5.22,164.28,164.16,5.22]
[1729525370074,5.22,164.28,164.17,1.2451]
[1729525370372,5.22,164.28,164.26,3.0446]
[1729525370979,8.2643,164.28,164.25,3.0448]
[1729525371972,3.11587841,164.29,164.2,5.22]
[1729525372171,3.9621,164.32,164.2,5.22]
[1729525372172,5.22,164.3,164.2,5.22]
[1729525372376,3.11743525,164.3,164.2,5.22]
[1729525372577,12.2257,164.32,164.2,5.22]
[1729525372872,12.2257,164.32,164.28,3.0441]
[1729525373081,3.0438,164.31,164.28,3.0441]
[1729525373280,6.15392162,164.31,164.28,3.0441]
[1729525373478,3.11012162,164.31,164.23,3.0452]
[1729525373676,12.2258,164.32,164.2,5.22]
[1729525374069,12.2258,164.32,164.29,3.0441]
[1729525376079,9.1821,164.32,164.29,3.0441]
[1729525376479,5.22,164.32,164.2,5.22]
[1729525376681,5.22,164.32,164.31,3.0437]
[1729525377283,5.22,164.32,164.25,3.8885]
[1729525377480,2.98524418,164.31,164.25,3.8885]
[1729525377880,5.22,164.32,164.25,1.2573]
[1729525377881,8.2637,164.32,164.25,1.2573]
[1729525378080,8.2637,164.32,164.29,3.0441]
[1729525378688,8.2637,164.32,164.26,3.0446]
[1729525378689,3.044,164.3,164.26,3.0446]
[1729525378883,3.04782235,164.29,164.24,5.22]
[1729525379584,3.04782235,164.29,164.21,11.3111]
[1729525379981,3.0442,164.29,164.21,5.22]
[1729525380186,3.04904099,164.28,164.21,5.22]
[1729525380576,5.22,164.32,164.21,5.22]
[1729525380782,5.22,164.32,164.2,5.22]
[1729525380982,3.9341,164.31,164.2,5.22]
[1729525381183,6.9084992,164.31,164.2,5.22]
[1729525381393,6.9084992,164.31,164.26,3.0446]
[1729525381785,3.0442,164.29,164.26,3.0446]
[1729525382088,6.9084992,164.31,164.28,3.0442]
[1729525382283,4.2959992,164.31,164.21,6.0911]
[1729525382586,5.22,164.34,164.21,3.01455599]
[1729525382790,2.6091,164.36,164.23,6.0902]
[1729525383089,5.22,164.35,164.24,7.799]
[1729525383490,3.0433,164.34,164.25,1.2563]
[1729525383883,3.0433,164.34,164.31,3.0436]
[1729525384581,5.22,164.35,164.25,1.2563]
[1729525384790,3.0435,164.33,164.3,3.0438]
[1729525385181,3.0437,164.32,164.29,3.044]
[1729525385383,5.22,164.35,164.29,3.044]
[1729525385384,2.99011657,164.31,164.29,3.044]
[1729525385587,5.22,164.35,164.25,1.2563]
[1729525385782,3.0439,164.31,164.28,3.0442]
[1729525386090,3.0126582,164.31,164.23,5.2]
[1729525386294,3.0442,164.29,164.26,3.0446]
[1729525386495,3.04403371,164.28,164.23,5.2]
[1729525386687,5.22,164.35,164.23,5.2]
[1729525386688,5.2,164.31,164.23,5.2]
[1729525386888,8.28637541,164.31,164.18,3.8156]
[1729525387091,1.3408,164.3,164.19,5.2]
[1729525387390,3.045,164.25,164.22,3.0453]
[1729525387987,2.5633,164.29,164.2,3.0456]
[1729525388188,2.5633,164.29,164.18,9.0156]
[1729525389291,3.045,164.25,164.21,3.0455]
[1729525389491,3.045,164.25,164.18,9.0156]
[1729525389896,5.22,164.27,164.18,9.0156]
[1729525390493,5.22,164.27,164.24,3.0449]
[1729525390694,8.2646,164.27,164.24,3.0449]
[1729525393098,3.0446,164.27,164.24,3.0449]
[1729525393300,7.7833,164.29,164.18,9.0156]
[1729525393501,3.0445,164.27,164.18,9.0156]
[1729525393692,7.7833,164.29,164.18,9.0156]
[1729525394096,3.0447,164.26,164.23,3.045]
[1729525394994,3.0447,164.26,164.24,3.045]
[1729525395201,3.0446,164.27,164.24,3.045]
[1729525395394,3.0446,164.27,164.25,3.0448]
[1729525395594,3.0446,164.27,164.18,9.0156]
[1729525396197,3.0446,164.27,164.24,3.0449]
[1729525397193,3.0446,164.27,164.18,9.0156]
[1729525397501,3.0446,164.27,164.24,3.0449]
[1729525398497,3.0444,164.28,164.25,3.0447]
[1729525398901,3.0444,164.28,164.18,9.0156]
[1729525399102,3.0444,164.28,164.26,3.0446]
[1729525399692,7.7833,164.29,164.18,9.0156]
[1729525399898,3.0445,164.27,164.18,9.0156]
[1729525400294,3.0445,164.27,164.2,3.0456]
[1729525400499,3.0445,164.27,164.18,9.0156]
[1729525401106,3.0445,164.27,164.25,3.0448]
[1729525401406,3.0445,164.27,164.18,9.0156]
[1729525401605,3.0445,164.27,164.24,3.0449]
[1729525402102,3.0445,164.27,164.18,9.0156]
[1729525402304,3.0445,164.27,164.25,3.0448]
[1729525402906,7.7833,164.29,164.18,9.0156]
[1729525403605,3.0445,164.27,164.24,3.0449]
[1729525404201,3.0445,164.27,164.18,9.0156]
[1729525404400,5.22,164.29,164.18,9.0156]
[1729525404802,5.22,164.29,164.24,3.0449]
[1729525405002,3.0446,164.27,164.24,3.0449]
[1729525406211,3.0446,164.27,164.18,9.0156]
[1729525406707,3.0446,164.27,164.24,3.0449]
[1729525407297,3.0446,164.27,164.25,3.0448]
[1729525408903,3.0446,164.27,164.24,3.0449]
[1729525409103,3.0446,164.27,164.18,9.0156]
[1729525409903,3.0446,164.27,164.25,3.0448]
[1729525411404,3.0444,164.28,164.25,3.0448]
[1729525412510,3.0451,164.24,164.21,3.0455]
[1729525412710,5.2,164.25,164.14,3.8951]
[1729525412916,2.6282,164.24,164.15,5.2]
[1729525413215,3.0454,164.23,164.15,5.2]
[1729525413507,2.6282,164.24,164.15,5.2]
[1729525413508,3.0455,164.22,164.19,3.0458]
[1729525413715,3.10546705,164.22,164.15,5.2]
[1729525414015,3.0455,164.22,164.17,3.0462]
[1729525414217,6.04366123,164.22,164.14,3.8951]
[1729525414614,2.99816123,164.22,164.14,3.8951]
[1729525414904,3.0456,164.21,164.18,3.046]
[1729525415109,3.09815074,164.22,164.18,3.046]
[1729525415313,3.0455,164.22,164.18,3.046]
[1729525415609,6.07079253,164.22,164.18,3.046]
[1729525417122,3.02529253,164.22,164.14,3.8951]
[1729525417324,3.0454,164.23,164.14,3.8951]
[1729525418219,3.1210142,164.22,164.14,3.8951]
[1729525418521,2.6282,164.24,164.17,3.0463]
[1729525418822,2.6282,164.24,164.14,3.8951]
[1729525419022,2.6282,164.24,164.21,3.0455]
[1729525419227,5.6733,164.24,164.21,3.0455]
[1729525419419,21.37637541,164.31,164.17,5.2]
[1729525419420,3.08637541,164.31,164.17,5.2]
[1729525419721,3.08637541,164.31,164.25,3.0448]
[1729525419722,3.0444,164.28,164.25,3.0448]
[1729525419917,5.2,164.28,164.17,8.2899199]
[1729525420119,5.2,164.28,164.18,6.0922]
[1729525420313,8.2443,164.28,164.25,3.0447]
[1729525421525,6.13017541,164.31,164.28,3.0442]
[1729525421723,11.33017541,164.31,164.28,3.0442]
[1729525422118,11.33017541,164.31,164.29,3.044]
[1729525422119,3.08637541,164.31,164.29,3.044]
[1729525422319,5.2,164.32,164.22,3.9869]
[1729525422622,8.2436,164.32,164.25,3.0449]
[1729525422822,8.2436,164.32,164.22,3.9869]
[1729525423223,8.2436,164.32,164.28,3.0442]
[1729525423623,3.0438,164.31,164.28,3.0442]
[1729525423815,3.11119808,164.3,164.28,3.0442]
[1729525424015,3.0438,164.31,164.28,3.0442]
[1729525424421,3.08560405,164.31,164.28,3.0442]
[1729525424927,3.08560405,164.31,164.22,3.9869]
[1729525425927,6.12940405,164.31,164.28,3.0442]
[1729525427121,6.12940405,164.31,164.22,3.9869]
[1729525427122,3.08560405,164.31,164.2,5.2]
[1729525427423,7.7808,164.33,164.2,5.2]
[1729525427622,3.0442,164.29,164.25,3.0447]
[1729525427817,8.2442,164.29,164.25,3.0447]
[1729525428025,8.25532109,164.29,164.2,5.2]
[1729525428226,3.0445,164.27,164.24,3.045]
[1729525428518,8.25532109,164.29,164.18,2.6264]
[1729525428715,1.3007,164.28,164.18,2.6264]
[1729525428921,5.2,164.27,164.18,2.6264]
[1729525429121,3.0447,164.26,164.22,3.0453]
[1729525429719,3.0449,164.25,164.22,3.0453]
[1729525432324,11.33069674,164.27,164.24,3.0449]
[1729525432523,8.28609674,164.27,164.18,1.3151]
[1729525432932,8.28609674,164.27,164.25,3.0447]
[1729525434030,8.28609674,164.27,164.18,1.3151]
[1729525434031,11.33059674,164.27,164.24,3.045]
[1729525434727,3.08609674,164.27,164.25,3.0448]
[1729525434931,3.0443,164.28,164.25,3.0448]
[1729525435532,6.04752103,164.28,164.25,3.0448]
[1729525436123,3.00322103,164.28,164.18,4.34666481]
[1729525436324,5.2,164.3,164.18,4.34666481]
[1729525436531,8.29336122,164.3,164.19,6.0918]
[1729525436933,8.29336122,164.3,164.2,1.2421]
[1729525437135,8.29336122,164.3,164.21,5.2]
[1729525437336,3.0441,164.29,164.26,3.0445]
[1729525440538,8.29336122,164.3,164.2,1.2421]
[1729525441238,8.29336122,164.3,164.18,1.3151]
[1729525441432,8.29336122,164.3,164.18,6.5151]
[1729525441835,3.045,164.25,164.22,3.0453]
[1729525442532,3.045,164.24,164.21,3.0455]
[1729525442739,5.2,164.26,164.18,6.5151]
[1729525443034,5.18,164.28,164.18,6.5151]
[1729525443235,8.2244,164.28,164.25,3.0447]
[1729525443435,3.01217699,164.27,164.25,3.0447]
[1729525443931,8.2244,164.28,164.25,3.0447]
[1729525444634,11.31429683,164.28,164.25,3.0447]
[1729525444930,8.26989683,164.28,164.18,6.5151]
[1729525445838,3.0446,164.27,164.24,3.045]
[1729525447328,3.08989683,164.28,164.27,3.0445]
[1729525447635,2.5808,164.33,164.19,6.092]
[1729525447636,5.18,164.34,164.22,5.18]
[1729525447933,5.18,164.34,164.23,2.5942]
[1729525448539,3.0437,164.32,164.29,3.044]
[1729525448740,3.0437,164.32,164.23,2.5942]
[1729525448741,3.08087036,164.31,164.23,2.5942]
[1729525448938,3.08087036,164.31,164.24,1.2431]
[1729525449840,3.08087036,164.31,164.3,3.0439]
[1729525450237,3.0435,164.33,164.3,3.0439]
[1729525450637,3.0435,164.33,164.31,3.0437]
[1729525450940,8.2232,164.34,164.31,3.0437]
[1729525454734,8.2232,164.34,164.31,3.0436]
[1729525456138,5.18,164.34,164.24,1.2431]
[1729525456336,3.8919,164.37,164.24,1.2431]
[1729525456643,5.18,164.36,164.25,6.0896]
[1729525456847,8.2229,164.36,164.33,3.0433]
[1729525458140,5.18,164.36,164.34,3.0431]
[1729525458938,12.1146,164.37,164.34,3.0431]
[1729525459346,6.9346,164.37,164.34,3.0431]
[1729525459640,10.8435,164.37,164.34,3.0431]
[1729525459842,7.8008,164.37,164.26,5.18]
[1729525460144,5.18,164.37,164.35,3.043]
[1729525462746,5.18,164.37,164.36,3.0428]
[1729525462947,94.67611852,164.39,164.36,3.0428]
[1729525463148,8.2223,164.39,164.36,3.0428]
[1729525463444,5.18,164.39,164.3,5.18]
[1729525463652,3.9625,164.42,164.3,5.18]
[1729525463948,9.1425,164.42,164.31,3.8157]
[1729525464144,9.1425,164.42,164.38,3.0423]
[1729525464145,12.1843,164.42,164.38,3.0423]
[1729525464344,15.25933178,164.42,164.38,3.0423]
[1729525464643,3.07503178,164.42,164.34,5.18]
[1729525464845,5.18,164.44,164.34,5.18]
[1729525465443,11.19816244,164.44,164.37,3.0426]
[1729525465643,11.19816244,164.44,164.34,5.18]
[1729525466251,8.15666244,164.44,164.4,3.0419]
[1729525466444,3.0416,164.43,164.4,3.0419]
[1729525467550,8.15666244,164.44,164.4,3.0419]
[1729525467748,11.19816244,164.44,164.4,3.0419]
[1729525470150,8.15666244,164.44,164.41,3.0418]
[1729525470848,11.19816244,164.44,164.41,3.0418]
[1729525471052,8.15666244,164.44,164.4,3.042]
[1729525471560,3.0415,164.43,164.4,3.042]
[1729525473455,8.15666244,164.44,164.4,3.042]
[1729525473647,11.19816244,164.44,164.4,3.042]
[1729525473953,8.15666244,164.44,164.4,3.042]
[1729525474960,3.0416,164.43,164.4,3.042]
[1729525475758,11.19806244,164.44,164.34,5.18]
[1729525476558,3.0418,164.42,164.39,3.0422]
[1729525477851,3.0416,164.43,164.4,3.042]
[1729525478557,8.15666244,164.44,164.31,8.9957]
[1729525478858,3.0424,164.39,164.35,3.0429]
[1729525480357,3.0424,164.39,164.36,3.0428]
[1729525480861,3.0425,164.38,164.35,3.0429]
[1729525482855,1.2861,164.41,164.31,6.4176]
[1729525483062,3.0427,164.37,164.34,3.043]
[1729525483565,5.18,164.4,164.31,5.18]
[1729525483765,3.0429,164.36,164.33,3.0432]
[1729525483959,3.1127213,164.35,164.31,5.18]
[1729525484163,3.0426,164.37,164.34,3.0431]
[1729525484367,5.18,164.4,164.28,11.2685]
[1729525484867,3.043,164.36,164.33,3.0433]
[1729525485072,3.08679665,164.35,164.28,11.2685]
[1729525485268,3.08679665,164.35,164.33,3.0433]
[1729525486164,3.08679665,164.35,164.28,11.2685]
[1729525486462,3.08679665,164.35,164.28,5.18]
[1729525486667,5.18,164.4,164.28,5.18]
[1729525487067,3.0432,164.35,164.32,3.0435]
[1729525487268,6.02460572,164.35,164.32,3.0435]
[1729525487462,2.98140572,164.35,164.27,1.2967]
[1729525487658,5.18,164.4,164.3,3.0438]
[1729525487659,3.0435,164.33,164.3,3.0438]
[1729525487968,6.04135401,164.33,164.3,3.0438]
[1729525488462,2.99785401,164.33,164.31,3.0437]
[1729525489368,2.99785401,164.33,164.28,5.18]
[1729525490458,2.99785401,164.33,164.31,3.0436]
[1729525490663,6.04135401,164.33,164.28,5.18]
[1729525491066,6.04135401,164.33,164.29,3.044]
[1729525491367,1.2861,164.41,164.28,5.18]
[1729525491563,3.0425,164.38,164.35,3.0429]
[1729525492669,1.2861,164.41,164.28,5.18]
[1729525492964,5.18,164.4,164.37,3.0426]
[1729525493764,5.18,164.4,164.38,3.0423]
[1729525495465,4.328,164.41,164.38,3.0423]
[1729525495660,9.508,164.41,164.38,3.0423]
[1729525496067,4.328,164.41,164.38,3.0423]
[1729525496470,3.0419,164.41,164.38,3.0423]
[1729525500469,3.0427,164.37,164.34,3.043]
[1729525500777,7.8081,164.42,164.31,1.3396]
[1729525501071,3.042,164.41,164.31,1.3396]
[1729525501574,7.8081,164.42,164.31,1.3396]
[1729525501575,5.18,164.42,164.31,1.3396]
[1729525501776,5.18,164.42,164.32,6.0869]
[1729525502073,5.18,164.42,164.4,3.042]
[1729525503469,3.0416,164.43,164.4,3.042]
[1729525503678,11.19816244,164.44,164.33,6.4847]
[1729525503879,8.15666244,164.44,164.33,6.4847]
[1729525504174,3.0416,164.43,164.4,3.042]
[1729525505370,8.15666244,164.44,164.4,3.042]
[1729525505371,11.19806244,164.44,164.4,3.042]
[1729525506875,11.17806244,164.44,164.41,3.0419]
[1729525507876,2.97666244,164.44,164.33,1.3047]
[1729525508066,2.99828141,164.49,164.34,5.16]
[1729525508271,12.56401212,164.55,164.34,5.16]
[1729525508272,5.16,164.54,164.35,65.76]
[1729525508467,9.0231,164.55,164.35,68.85693513]
[1729525509176,9.0231,164.55,164.39,6.0845]
[1729525509372,9.0231,164.55,164.4,9.0702]
[1729525509677,9.0231,164.55,164.41,5.16]
[1729525509979,3.0402,164.51,164.47,3.0407]
[1729525510271,3.0402,164.51,164.41,5.16]
[1729525510474,3.0402,164.51,164.48,3.0406]
[1729525511979,3.0401,164.51,164.47,3.0407]
[1729525513374,8.2001,164.51,164.47,3.0407]
[1729525513577,3.0407,164.48,164.44,3.0412]
[1729525513776,6.00824855,164.48,164.44,3.0412]
[1729525514176,2.96754855,164.48,164.42,3.0416]
[1729525514480,5.16,164.51,164.4,9.0702]
[1729525515179,3.0402,164.5,164.47,3.0408]
[1729525515382,3.05593111,164.5,164.4,9.0702]
[1729525515581,3.0407,164.48,164.44,3.0412]
[1729525515982,3.00449163,164.5,164.44,3.0412]
[1729525516183,5.16,164.51,164.44,3.0412]
[1729525517277,3.0407,164.48,164.44,3.0412]
[1729525517481,6.14643333,164.48,164.44,3.0412]
[1729525518877,3.10573333,164.48,164.46,3.0408]
[1729525519075,5.16,164.51,164.4,3.9102]
[1729525519478,8.2001,164.51,164.47,3.0407]
[1729525520181,8.2001,164.51,164.4,3.9102]
[1729525520182,3.0406,164.48,164.4,3.9102]
[1729525520379,2.99049035,164.47,164.4,3.9102]
[1729525520786,3.0406,164.49,164.45,3.041]
[1729525521086,6.11357614,164.49,164.45,3.041]
[1729525521282,3.0406,164.49,164.45,3.041]
[1729525521879,6.04113474,164.49,164.45,3.041]
[1729525523295,3.8631,164.55,164.44,5.16]
[1729525523683,3.0402,164.51,164.47,3.0407]
[1729525523986,3.8631,164.55,164.47,3.0407]
[1729525523987,5.16,164.52,164.47,3.0407]
[1729525524285,3.0402,164.51,164.47,3.0407]
[1729525524787,5.16,164.52,164.41,5.16]
[1729525525182,5.16,164.52,164.46,3.0409]
[1729525525381,3.0404,164.5,164.46,3.0409]
[1729525525581,6.07531884,164.5,164.46,3.0409]
[1729525526385,3.03491884,164.5,164.49,3.0404]
[1729525526688,2.5076,164.55,164.41,5.16]
[1729525526689,5.16,164.52,164.41,5.16]
[1729525527186,3.756,164.55,164.41,5.16]
[1729525527388,8.69575989,164.58,164.41,5.16]
[1729525527588,3.039,164.57,164.54,3.0394]
[1729525527789,3.039,164.57,164.47,5.16]
[1729525527997,13.85575989,164.58,164.48,3.9705]
[1729525528290,5.16,164.58,164.48,3.9705]
[1729525528794,3.8962,164.57,164.48,3.9705]
[1729525529087,3.8962,164.57,164.5,3.04]
[1729525529492,3.0396,164.54,164.5,3.04]
[1729525529997,5.16,164.58,164.54,3.0393]
[1729525530189,8.18876893,164.58,164.48,3.9705]
[1729525530394,3.02876893,164.58,164.48,3.9705]
[1729525530590,8.18876893,164.58,164.48,3.9705]
[1729525530787,3.0391,164.57,164.53,3.0396]
[1729525530994,6.09190436,164.57,164.53,3.0396]
[1729525531491,3.05280436,164.57,164.48,3.9705]
[1729525531697,2.571,164.62,164.48,3.9705]
[1729525531698,3.0389,164.58,164.48,3.9705]
[1729525531903,6.11665253,164.58,164.48,3.9705]
[1729525532200,6.11655253,164.58,164.48,3.9705]
[1729525532399,3.0388,164.58,164.48,3.9705]
[1729525532898,3.05797654,164.57,164.5,3.0401]
[1729525533099,6.09697654,164.57,164.48,3.9705]
[1729525533289,3.039,164.57,164.48,3.9705]
[1729525533495,3.039,164.57,164.54,3.0393]
[1729525533695,2.97303445,164.58,164.48,3.9705]
[1729525533891,5.16,164.6,164.48,3.9705]
[1729525534096,5.16,164.6,164.55,3.0392]
[1729525534297,3.0389,164.58,164.55,3.0392]
[1729525534789,3.0389,164.57,164.55,3.0392]
[1729525535897,3.0389,164.58,164.55,3.0392]
[1729525536396,8.2532748,164.6,164.51,5.14]
[1729525536994,3.0386,164.59,164.51,5.14]
[1729525537394,143.10120357,164.68,164.52,6.0797]
[1729525537599,3.06703503,164.67,164.51,8.25753372]
[1729525537797,5.14,164.68,164.51,8.25753372]
[1729525538192,3.0375,164.65,164.62,3.0379]
[1729525538397,8.12246493,164.68,164.58,5.14]
[1729525539305,8.1771,164.67,164.64,3.0376]
[1729525539498,5.14,164.67,164.58,5.14]
[1729525540004,3.0373,164.66,164.58,5.14]
[1729525540303,5.14,164.67,164.58,5.14]
[1729525540604,3.0376,164.65,164.61,3.0382]
[1729525540803,5.14,164.67,164.57,5.14]
[1729525541301,5.14,164.67,164.6,3.0384]
[1729525541697,3.0375,164.65,164.61,3.0381]
[1729525541998,3.0375,164.65,164.57,5.14]
[1729525542197,3.0375,164.65,164.61,3.0381]
[1729525542595,3.0377,164.64,164.57,5.14]
[1729525542799,3.0377,164.64,164.61,3.0382]
[1729525543205,5.14,164.67,164.56,2.6763]
[1729525543401,3.038,164.62,164.58,3.0386]
[1729525543904,3.0378,164.63,164.59,3.0384]
[1729525544105,5.14,164.67,164.56,7.8163]
[1729525544502,3.0377,164.64,164.6,3.0383]
[1729525545010,5.14,164.67,164.56,7.8163]
[1729525545195,3.038,164.63,164.56,7.8163]
[1729525545397,5.14,164.67,164.56,7.8163]
[1729525545795,3.038,164.63,164.59,3.0384]
[1729525546601,3.0377,164.64,164.6,3.0383]
[1729525546797,3.0377,164.64,164.56,7.8163]
[1729525547408,3.0376,164.65,164.56,7.8163]
[1729525548008,3.0376,164.65,164.61,3.0381]
[1729525548805,3.0376,164.65,164.56,7.8163]
[1729525549001,3.0376,164.65,164.61,3.0381]
[1729525549205,3.0377,164.64,164.61,3.0381]
[1729525549609,5.14,164.67,164.56,7.8163]
[1729525549907,3.0375,164.65,164.62,3.038]
[1729525550909,3.0375,164.65,164.61,3.0381]
[1729525551607,3.0373,164.67,164.63,3.0377]
[1729525551809,5.14,164.67,164.63,3.0377]
[1729525552217,3.0374,164.66,164.63,3.0377]
[1729525552410,5.14,164.67,164.63,3.0377]
[1729525552810,3.0373,164.66,164.63,3.0377]
[1729525553815,5.14,164.67,164.56,7.8163]
[1729525554011,3.0371,164.67,164.64,3.0375]
[1729525554813,2.98246493,164.68,164.6,5.14]
[1729525555011,5.14,164.69,164.6,5.14]
[1729525555513,3.0372,164.67,164.64,3.0376]
[1729525555912,8.11189257,164.69,164.6,5.14]
[1729525555913,2.97189257,164.69,164.6,5.14]
[1729525556119,3.0367,164.69,164.66,3.0372]
[1729525556316,3.01288134,164.69,164.66,3.0372]
[1729525556616,5.14,164.71,164.66,3.0372]
[1729525557015,8.23617561,164.71,164.66,3.0372]
[1729525557220,3.0367,164.69,164.66,3.0372]
[1729525557411,8.23617561,164.71,164.6,5.14]
[1729525557611,8.23617561,164.71,164.67,3.037]
[1729525558009,3.0367,164.69,164.66,3.0372]
[1729525558815,3.0365,164.7,164.67,3.037]
[1729525559421,3.0368,164.69,164.6,5.14]
[1729525560015,3.0369,164.68,164.65,3.0373]
[1729525560223,3.08060141,164.69,164.65,3.0373]
[1729525560415,5.14,164.71,164.6,5.14]
[1729525560716,8.20570753,164.71,164.6,5.14]
[1729525561119,3.0375,164.65,164.61,3.038]
[1729525561317,5.14,164.67,164.6,5.14]
[1729525561724,3.0375,164.65,164.62,3.0379]
[1729525561920,5.14,164.7,164.6,5.14]
[1729525562731,3.0371,164.67,164.63,3.0378]
[1729525563033,5.14,164.7,164.6,5.14]
[1729525564032,3.0369,164.68,164.65,3.0373]
[1729525564432,5.14,164.7,164.6,5.14]
[1729525564629,3.0372,164.67,164.64,3.0376]
[1729525565035,3.0375,164.65,164.62,3.0379]
[1729525565436,3.0375,164.65,164.6,5.14]
[1729525565831,3.0373,164.66,164.63,3.0377]
[1729525567231,3.0373,164.66,164.6,5.14]
[1729525567433,3.0372,164.67,164.64,3.0375]
[1729525568330,3.0369,164.68,164.65,3.0373]
[1729525568527,5.14,164.7,164.6,5.14]
[1729525569233,3.06570753,164.71,164.6,5.14]
[1729525569427,1.2475,164.73,164.6,5.14]
[1729525569428,6.3875,164.73,164.6,5.14]
[1729525569734,3.0365,164.71,164.68,3.0368]
[1729525569930,6.08549076,164.71,164.64,5.14]
[1729525570127,3.0365,164.71,164.64,5.14]
[1729525570741,6.08549076,164.71,164.66,3.0373]
[1729525570942,3.0365,164.71,164.64,5.14]
[1729525571137,3.11434799,164.71,164.64,5.14]
[1729525571433,3.0362,164.72,164.69,3.0365]
[1729525571642,3.0526386,164.71,164.64,5.14]
[1729525572539,3.0526386,164.71,164.69,3.0365]
[1729525572739,3.0526386,164.71,164.64,5.14]
[1729525573136,4.2836,164.73,164.7,3.0365]
[1729525573535,1.2475,164.73,164.7,3.0365]
[1729525573840,3.0362,164.72,164.7,3.0365]
[1729525574050,1.2475,164.73,164.69,3.0367]
[1729525574343,3.0363,164.72,164.69,3.0367]
[1729525574842,2.9876538,164.71,164.7,3.0364]
[1729525575045,4.2836,164.73,164.7,3.0364]
[1729525575541,4.2836,164.73,164.64,5.14]